[Event "Early-Titled-Tuesday-Blitz-July-09-2024"]
[Site "Chess.com"]
[Date "2024.07.09"]
[Round "4"]
[White "gau248"]
[Black "TioCridineno"]
[Result "1-0"]
[WhiteElo "2628"]
[BlackElo "2416"]
[TimeControl "180+1"]
[EndTime "8:40:37 PDT"]
[Termination "gau248 won by resignation"]

1. e4 {[%clk 0:03:00.9]} 1... c5 {[%clk 0:02:59.8]} 2. Nf3 {[%clk 0:02:59.1]}
2... Nc6 {[%clk 0:02:59.7]} 3. d4 {[%clk 0:02:56.8]} 3... cxd4 {[%clk
0:02:59.6]} 4. Nxd4 {[%clk 0:02:56.9]} 4... Nf6 {[%clk 0:03:00.1]} 5. Nc3 {[%clk
0:02:54.3]} 5... e5 {[%clk 0:03:00.6]} 6. Ndb5 {[%clk 0:02:53]} 6... d6 {[%clk
0:03:00.7]} 7. Bg5 {[%clk 0:02:43.8]} 7... a6 {[%clk 0:03:00.3]} 8. Na3 {[%clk
0:02:43.4]} 8... b5 {[%clk 0:03:00.3]} 9. Nd5 {[%clk 0:02:42.6]} 9... Be7 {[%clk
0:03:00.3]} 10. Bxf6 {[%clk 0:02:37.6]} 10... Bxf6 {[%clk 0:03:00.4]} 11. Be2
{[%clk 0:02:38.1]} 11... O-O {[%clk 0:02:57.9]} 12. c3 {[%clk 0:02:37.4]} 12...
Bg5 {[%clk 0:02:57.7]} 13. O-O {[%clk 0:02:36.2]} 13... Ne7 {[%clk 0:02:50.9]}
14. Nc2 {[%clk 0:02:33.1]} 14... Nxd5 {[%clk 0:02:49.4]} 15. Qxd5 {[%clk
0:02:34]} 15... Be6 {[%clk 0:02:48.9]} 16. Qd3 {[%clk 0:02:29.7]} 16... Qc7
{[%clk 0:02:45.8]} 17. Nb4 {[%clk 0:02:27.7]} 17... Qc5 {[%clk 0:02:19.6]} 18.
Rad1 {[%clk 0:02:26]} 18... Rfd8 {[%clk 0:02:18.5]} 19. Nd5 {[%clk 0:02:24.6]}
19... Bxd5 {[%clk 0:02:12.4]} 20. exd5 {[%clk 0:02:18]} 20... g6 {[%clk
0:02:06.9]} 21. Kh1 {[%clk 0:02:15.7]} 21... Re8 {[%clk 0:01:58.9]} 22. b4
{[%clk 0:02:05]} 22... Qc7 {[%clk 0:01:57.8]} 23. c4 {[%clk 0:01:57.7]} 23...
bxc4 {[%clk 0:01:56.3]} 24. Qxc4 {[%clk 0:01:57.7]} 24... Qxc4 {[%clk 0:01:56]}
25. Bxc4 {[%clk 0:01:58.6]} 25... Rec8 {[%clk 0:01:55.4]} 26. Bd3 {[%clk
0:01:54.8]} 26... Rc3 {[%clk 0:01:48.3]} 27. a4 {[%clk 0:01:53.9]} 27... f5
{[%clk 0:01:39.6]} 28. f3 {[%clk 0:01:49.4]} 28... Be3 {[%clk 0:01:37]} 29. b5
{[%clk 0:01:48.9]} 29... axb5 {[%clk 0:01:36.5]} 30. Bxb5 {[%clk 0:01:48]} 30...
Bc5 {[%clk 0:01:34.7]} 31. Bc6 {[%clk 0:01:48]} 31... Ra5 {[%clk 0:01:27.6]} 32.
Rb1 {[%clk 0:01:46.9]} 32... Kg7 {[%clk 0:01:19.6]} 33. g4 {[%clk 0:01:39.6]}
33... Be3 {[%clk 0:01:05.5]} 34. h4 {[%clk 0:01:34.1]} 34... Bf4 {[%clk
0:01:01.4]} 35. Rb7+ {[%clk 0:01:30.1]} 35... Kf8 {[%clk 0:00:57.9]} 36. Rfb1
{[%clk 0:01:07.4]} 36... Rc1+ {[%clk 0:00:53]} 37. Rxc1 {[%clk 0:01:07.3]} 37...
Bxc1 {[%clk 0:00:53.1]} 38. gxf5 {[%clk 0:01:06.2]} 38... gxf5 {[%clk
0:00:52.9]} 39. Rxh7 {[%clk 0:01:06.3]} 39... e4 {[%clk 0:00:49.7]} 40. fxe4
{[%clk 0:00:58.4]} 40... fxe4 {[%clk 0:00:49.9]} 41. Kg2 {[%clk 0:00:58.9]}
41... Bf4 {[%clk 0:00:48.2]} 42. Rh8+ {[%clk 0:00:55.5]} 42... Ke7 {[%clk
0:00:43.7]} 43. Re8+ {[%clk 0:00:55.2]} 43... Kf6 {[%clk 0:00:42.4]} 44. Rxe4
{[%clk 0:00:53.1]} 44... Kf5 {[%clk 0:00:42.5]} 45. Rc4 {[%clk 0:00:42.9]} 45...
Ra7 {[%clk 0:00:37.1]} 46. Rb4 {[%clk 0:00:38]} 46... Ke5 {[%clk 0:00:34.4]} 47.
Rb7 {[%clk 0:00:35.3]} 47... Ra5 {[%clk 0:00:29.3]} 48. Re7+ {[%clk 0:00:34.6]}
48... Kf6 {[%clk 0:00:25.8]} 49. Re6+ {[%clk 0:00:34.5]} 49... Kf7 {[%clk
0:00:22.8]} 50. Kf3 {[%clk 0:00:33.8]} 50... Be5 {[%clk 0:00:20.8]} 51. Ke4
{[%clk 0:00:32.3]} 51... Rc5 {[%clk 0:00:20.3]} 52. h5 {[%clk 0:00:19.4]} 52...
Rc4+ {[%clk 0:00:19.5]} 53. Kf5 {[%clk 0:00:18.9]} 53... Rf4+ {[%clk 0:00:19.5]}
54. Kg5 {[%clk 0:00:19]} 54... Rf1 {[%clk 0:00:18.6]} 55. h6 {[%clk 0:00:14.7]}
55... Rg1+ {[%clk 0:00:18.3]} 56. Kh5 {[%clk 0:00:14.2]} 56... Rh1+ {[%clk
0:00:18.7]} 57. Kg4 {[%clk 0:00:14.2]} 57... Rg1+ {[%clk 0:00:19.6]} 58. Kf3
{[%clk 0:00:14.1]} 58... Rh1 {[%clk 0:00:19.9]} 59. Ke4 {[%clk 0:00:13.4]} 59...
Rh4+ {[%clk 0:00:19.5]} 60. Kd3 {[%clk 0:00:13]} 60... Kf8 {[%clk 0:00:18.7]}
61. a5 {[%clk 0:00:12.4]} 61... Ra4 {[%clk 0:00:18.1]} 62. Bxa4 {[%clk
0:00:11.5]} 1-0

[Event "Early-Titled-Tuesday-Blitz-July-09-2024"]
[Site "Chess.com"]
[Date "2024.07.09"]
[Round "4"]
[White "Zurability"]
[Black "JosefineHeinemann"]
[Result "0-1"]
[WhiteElo "2674"]
[BlackElo "2511"]
[TimeControl "180+1"]
[EndTime "8:40:46 PDT"]
[Termination "JosefineHeinemann won on time"]

1. e4 {[%clk 0:03:00.9]} 1... c5 {[%clk 0:02:59.6]} 2. Nf3 {[%clk 0:03:00.5]}
2... d6 {[%clk 0:02:59.7]} 3. Bc4 {[%clk 0:02:54.6]} 3... e6 {[%clk 0:02:58.5]}
4. O-O {[%clk 0:02:54]} 4... Nf6 {[%clk 0:02:57.9]} 5. Nc3 {[%clk 0:02:53.4]}
5... Be7 {[%clk 0:02:57.6]} 6. a3 {[%clk 0:02:53.8]} 6... O-O {[%clk 0:02:57.4]}
7. Ba2 {[%clk 0:02:52.3]} 7... Nc6 {[%clk 0:02:56.4]} 8. d4 {[%clk 0:02:51.8]}
8... cxd4 {[%clk 0:02:56.8]} 9. Nxd4 {[%clk 0:02:52.7]} 9... Bd7 {[%clk
0:02:56.9]} 10. Be3 {[%clk 0:02:52]} 10... Nxd4 {[%clk 0:02:56.8]} 11. Qxd4
{[%clk 0:02:51]} 11... Bc6 {[%clk 0:02:57.4]} 12. Rad1 {[%clk 0:02:50]} 12...
Qc7 {[%clk 0:02:55.9]} 13. Qd3 {[%clk 0:02:31.9]} 13... a6 {[%clk 0:02:54]} 14.
Rfe1 {[%clk 0:02:27.9]} 14... Rfd8 {[%clk 0:02:47.7]} 15. Bf4 {[%clk 0:02:27.9]}
15... Qb6 {[%clk 0:02:43.8]} 16. Bb3 {[%clk 0:02:17.3]} 16... d5 {[%clk
0:02:15.9]} 17. exd5 {[%clk 0:02:02.7]} 17... Nxd5 {[%clk 0:02:15.3]} 18. Be5
{[%clk 0:01:35.7]} 18... Nxc3 {[%clk 0:01:29.6]} 19. Qxc3 {[%clk 0:01:35.2]}
19... Bf8 {[%clk 0:01:30]} 20. Rd4 {[%clk 0:01:08.1]} 20... Rxd4 {[%clk
0:01:27]} 21. Bxd4 {[%clk 0:01:09]} 21... Qd8 {[%clk 0:01:21.9]} 22. Qe3 {[%clk
0:00:55.7]} 22... Qh4 {[%clk 0:01:13.8]} 23. c3 {[%clk 0:00:53.5]} 23... Qg4
{[%clk 0:00:57.1]} 24. f3 {[%clk 0:00:50]} 24... Qh4 {[%clk 0:00:50.4]} 25. Bc2
{[%clk 0:00:41.8]} 25... Bd6 {[%clk 0:00:41.2]} 26. Be5 {[%clk 0:00:29.6]} 26...
Bxe5 {[%clk 0:00:41.1]} 27. Qxe5 {[%clk 0:00:30.5]} 27... Rd8 {[%clk 0:00:36.9]}
28. Qe2 {[%clk 0:00:29]} 28... g6 {[%clk 0:00:25]} 29. Rd1 {[%clk 0:00:26.1]}
29... Qg5 {[%clk 0:00:19.6]} 30. Rxd8+ {[%clk 0:00:21.4]} 30... Qxd8 {[%clk
0:00:19.5]} 31. Qd1 {[%clk 0:00:16]} 31... Qb6+ {[%clk 0:00:19.2]} 32. Kf1
{[%clk 0:00:07.4]} 32... Qxb2 {[%clk 0:00:19]} 33. Qd8+ {[%clk 0:00:07.7]} 33...
Kg7 {[%clk 0:00:19.2]} 34. Qd4+ {[%clk 0:00:08.6]} 34... f6 {[%clk 0:00:18.5]}
35. Be4 {[%clk 0:00:06.4]} 35... Bxe4 {[%clk 0:00:17.3]} 36. fxe4 {[%clk
0:00:06.6]} 36... Qxa3 {[%clk 0:00:14.4]} 37. Qd7+ {[%clk 0:00:06.7]} 37... Kh6
{[%clk 0:00:14.5]} 38. Qxb7 {[%clk 0:00:03]} 38... Qxc3 {[%clk 0:00:14.3]} 39.
Qxa6 {[%clk 0:00:02.9]} 39... Qb3 {[%clk 0:00:11.2]} 40. Qd6 {[%clk 0:00:01]}
40... Qb1+ {[%clk 0:00:10.1]} 41. Kf2 {[%clk 0:00:01.6]} 41... Qxe4 {[%clk
0:00:10.2]} 42. Qf8+ {[%clk 0:00:02.4]} 42... Kg5 {[%clk 0:00:09.6]} 43. g3
{[%clk 0:00:03.2]} 43... Qd4+ {[%clk 0:00:09]} 44. Kg2 {[%clk 0:00:03.5]} 44...
Qd2+ {[%clk 0:00:07.6]} 45. Kf3 {[%clk 0:00:03.7]} 45... Qd3+ {[%clk 0:00:05.8]}
46. Kg2 {[%clk 0:00:03.8]} 46... e5 {[%clk 0:00:05.6]} 47. h4+ {[%clk
0:00:03.9]} 47... Kh5 {[%clk 0:00:05.4]} 48. Qe7 {[%clk 0:00:03.8]} 48... Qe4+
{[%clk 0:00:04.9]} 49. Kh2 {[%clk 0:00:03.8]} 49... Qe2+ {[%clk 0:00:04.8]} 50.
Kh3 {[%clk 0:00:03.5]} 50... Qg4+ {[%clk 0:00:05]} 51. Kg2 {[%clk 0:00:03.9]}
51... Qf5 {[%clk 0:00:03.8]} 52. Qxh7+ {[%clk 0:00:03.7]} 52... Kg4 {[%clk
0:00:04.4]} 53. Qb7 {[%clk 0:00:03.6]} 53... e4 {[%clk 0:00:03.5]} 54. Qb2
{[%clk 0:00:03.2]} 54... Qf3+ {[%clk 0:00:03.5]} 55. Kh2 {[%clk 0:00:03]} 55...
Qxg3+ {[%clk 0:00:03.9]} 56. Kh1 {[%clk 0:00:03.9]} 56... Qxh4+ {[%clk
0:00:04.2]} 57. Kg1 {[%clk 0:00:04.6]} 57... Qg3+ {[%clk 0:00:04.6]} 58. Kf1
{[%clk 0:00:05.3]} 58... Qf3+ {[%clk 0:00:05.1]} 59. Kg1 {[%clk 0:00:05.9]}
59... e3 {[%clk 0:00:04.7]} 60. Qd4+ {[%clk 0:00:04.4]} 60... Kg3 {[%clk
0:00:03.5]} 61. Qd6+ {[%clk 0:00:03.7]} 61... Qf4 {[%clk 0:00:03.4]} 0-1

[Event "Early-Titled-Tuesday-Blitz-July-09-2024"]
[Site "Chess.com"]
[Date "2024.07.09"]
[Round "4"]
[White "Arimin1329"]
[Black "Tagir45"]
[Result "0-1"]
[WhiteElo "2401"]
[BlackElo "2622"]
[TimeControl "180+1"]
[EndTime "8:40:46 PDT"]
[Termination "Tagir45 won on time"]

1. Nf3 {[%clk 0:03:00.9]} 1... d5 {[%clk 0:02:58.1]} 2. d4 {[%clk 0:03:00.9]}
2... Nf6 {[%clk 0:02:56]} 3. g3 {[%clk 0:02:58.9]} 3... Bf5 {[%clk 0:02:54.9]}
4. Bg2 {[%clk 0:02:58]} 4... h6 {[%clk 0:02:54.9]} 5. c4 {[%clk 0:02:55.7]} 5...
e6 {[%clk 0:02:53.9]} 6. O-O {[%clk 0:02:49.5]} 6... Be7 {[%clk 0:02:50.5]} 7.
Qb3 {[%clk 0:02:48.2]} 7... Qc8 {[%clk 0:02:49.4]} 8. Nc3 {[%clk 0:02:47.3]}
8... c6 {[%clk 0:02:48.4]} 9. Nd2 {[%clk 0:02:43.6]} 9... O-O {[%clk 0:02:46.9]}
10. e4 {[%clk 0:02:42.9]} 10... dxe4 {[%clk 0:02:46.9]} 11. Ndxe4 {[%clk
0:02:43]} 11... Nxe4 {[%clk 0:02:46.3]} 12. Nxe4 {[%clk 0:02:43.9]} 12... Nd7
{[%clk 0:02:45.1]} 13. Bf4 {[%clk 0:02:39.4]} 13... Bxe4 {[%clk 0:02:26.2]} 14.
Bxe4 {[%clk 0:02:37.4]} 14... Rd8 {[%clk 0:02:27.1]} 15. Rfd1 {[%clk 0:02:35.4]}
15... Bf6 {[%clk 0:02:14.2]} 16. Rd2 {[%clk 0:02:27.2]} 16... Bg5 {[%clk
0:01:49.8]} 17. Bxg5 {[%clk 0:02:15.7]} 17... hxg5 {[%clk 0:01:50.5]} 18. Rad1
{[%clk 0:02:11.6]} 18... Nf6 {[%clk 0:01:49.4]} 19. Bg2 {[%clk 0:02:07.6]} 19...
Qc7 {[%clk 0:01:46.9]} 20. d5 {[%clk 0:02:05]} 20... exd5 {[%clk 0:01:36.8]} 21.
cxd5 {[%clk 0:02:04.5]} 21... cxd5 {[%clk 0:01:33]} 22. Bxd5 {[%clk 0:02:03.4]}
22... Nxd5 {[%clk 0:01:31.3]} 23. Rxd5 {[%clk 0:02:04.3]} 23... Rxd5 {[%clk
0:01:30.2]} 24. Qxd5 {[%clk 0:02:02.1]} 24... Qc2 {[%clk 0:01:15.4]} 25. Rd2
{[%clk 0:01:35.1]} 25... Qc1+ {[%clk 0:01:14.2]} 26. Kg2 {[%clk 0:01:35.4]}
26... Re8 {[%clk 0:01:12]} 27. Qxg5 {[%clk 0:01:17]} 27... b6 {[%clk 0:01:10.1]}
28. h4 {[%clk 0:01:09.8]} 28... Qc6+ {[%clk 0:00:39.9]} 29. Qd5 {[%clk
0:00:55.1]} 29... Qxd5+ {[%clk 0:00:39.1]} 30. Rxd5 {[%clk 0:00:56]} 30... Re2
{[%clk 0:00:38.9]} 31. Rb5 {[%clk 0:00:32]} 31... g6 {[%clk 0:00:37.7]} 32. Kf3
{[%clk 0:00:31.3]} 32... Rc2 {[%clk 0:00:37.3]} 33. Ke3 {[%clk 0:00:30.5]} 33...
Kg7 {[%clk 0:00:36.8]} 34. f3 {[%clk 0:00:26.4]} 34... Kf6 {[%clk 0:00:35.6]}
35. g4 {[%clk 0:00:21.1]} 35... Ke6 {[%clk 0:00:35.3]} 36. h5 {[%clk 0:00:20.4]}
36... gxh5 {[%clk 0:00:34.9]} 37. gxh5 {[%clk 0:00:20.8]} 37... Rh2 {[%clk
0:00:34.6]} 38. Kf4 {[%clk 0:00:20.4]} 38... Rg2 {[%clk 0:00:26.5]} 39. a3
{[%clk 0:00:19.5]} 39... Kf6 {[%clk 0:00:25.2]} 40. b3 {[%clk 0:00:18.9]} 40...
Rh2 {[%clk 0:00:23.5]} 41. Rf5+ {[%clk 0:00:18.3]} 41... Ke6 {[%clk 0:00:23.3]}
42. Rg5 {[%clk 0:00:18.2]} 42... f6 {[%clk 0:00:16.9]} 43. Rb5 {[%clk
0:00:14.8]} 43... Ra2 {[%clk 0:00:13.1]} 44. a4 {[%clk 0:00:09.5]} 44... Rh2
{[%clk 0:00:10]} 45. Kg3 {[%clk 0:00:09.2]} 45... Rb2 {[%clk 0:00:08.8]} 46. h6
{[%clk 0:00:07.6]} 46... Kf7 {[%clk 0:00:09.1]} 47. h7 {[%clk 0:00:07.5]} 47...
Kg7 {[%clk 0:00:09.3]} 48. Kf4 {[%clk 0:00:04.3]} 48... Kxh7 {[%clk 0:00:09.5]}
49. Kf5 {[%clk 0:00:04.7]} 49... Kg7 {[%clk 0:00:10]} 50. Ke6 {[%clk 0:00:03.7]}
50... Rf2 {[%clk 0:00:08.8]} 51. Rf5 {[%clk 0:00:02]} 51... Rb2 {[%clk
0:00:08.6]} 52. Rxf6 {[%clk 0:00:01.6]} 52... Rxb3 {[%clk 0:00:08.9]} 53. Rf7+
{[%clk 0:00:01.8]} 53... Kg6 {[%clk 0:00:09.2]} 0-1

[Event "Early-Titled-Tuesday-Blitz-July-09-2024"]
[Site "Chess.com"]
[Date "2024.07.09"]
[Round "4"]
[White "Flaccidmoves"]
[Black "GMG"]
[Result "1/2-1/2"]
[WhiteElo "2582"]
[BlackElo "2816"]
[TimeControl "180+1"]
[EndTime "8:40:49 PDT"]
[Termination "Game drawn - insufficient material"]

1. d4 {[%clk 0:03:00.9]} 1... d5 {[%clk 0:02:59.6]} 2. c4 {[%clk 0:03:00.7]}
2... e6 {[%clk 0:02:59.9]} 3. g3 {[%clk 0:02:59.2]} 3... c5 {[%clk 0:02:55.2]}
4. cxd5 {[%clk 0:02:58.4]} 4... Qxd5 {[%clk 0:02:54.4]} 5. Nf3 {[%clk
0:02:57.7]} 5... cxd4 {[%clk 0:02:54.4]} 6. Qxd4 {[%clk 0:02:57]} 6... Nf6
{[%clk 0:02:36.8]} 7. Nc3 {[%clk 0:02:55.4]} 7... Qxd4 {[%clk 0:02:34.9]} 8.
Nxd4 {[%clk 0:02:56.3]} 8... a6 {[%clk 0:02:29]} 9. Bg2 {[%clk 0:02:55.5]} 9...
Bc5 {[%clk 0:02:26.2]} 10. Nb3 {[%clk 0:02:54.6]} 10... Bb4 {[%clk 0:02:18.1]}
11. O-O {[%clk 0:02:24]} 11... Nbd7 {[%clk 0:02:13.7]} 12. Be3 {[%clk
0:02:16.7]} 12... O-O {[%clk 0:02:00.5]} 13. Rac1 {[%clk 0:02:16]} 13... Rb8
{[%clk 0:01:59.6]} 14. a3 {[%clk 0:02:05.6]} 14... Be7 {[%clk 0:01:58.2]} 15.
Na5 {[%clk 0:02:04.1]} 15... Ng4 {[%clk 0:01:35.5]} 16. Bf4 {[%clk 0:02:01.6]}
16... e5 {[%clk 0:01:34.8]} 17. Nd5 {[%clk 0:01:58.5]} 17... Bd8 {[%clk
0:01:34.3]} 18. Bd2 {[%clk 0:01:58.7]} 18... Ndf6 {[%clk 0:01:30.9]} 19. Nxf6+
{[%clk 0:01:33.2]} 19... Nxf6 {[%clk 0:01:31.8]} 20. Rfd1 {[%clk 0:01:28.1]}
20... h6 {[%clk 0:01:20.5]} 21. Bc3 {[%clk 0:01:23.3]} 21... Bg4 {[%clk
0:01:13.8]} 22. Nxb7 {[%clk 0:01:11.8]} 22... Bc7 {[%clk 0:00:45.1]} 23. Bb4
{[%clk 0:01:01.2]} 23... Rfc8 {[%clk 0:00:38]} 24. Kf1 {[%clk 0:00:35]} 24... e4
{[%clk 0:00:36.3]} 25. Nc5 {[%clk 0:00:34.2]} 25... Be5 {[%clk 0:00:25.5]} 26.
b3 {[%clk 0:00:26.3]} 26... a5 {[%clk 0:00:20.2]} 27. Bxa5 {[%clk 0:00:26]}
27... Bb2 {[%clk 0:00:20.7]} 28. Rc2 {[%clk 0:00:23.8]} 28... Bxa3 {[%clk
0:00:21]} 29. b4 {[%clk 0:00:22.7]} 29... Bxb4 {[%clk 0:00:19.3]} 30. Bxb4
{[%clk 0:00:23.6]} 30... Rxb4 {[%clk 0:00:19.6]} 31. Rdc1 {[%clk 0:00:21.4]}
31... Bf5 {[%clk 0:00:18.9]} 32. e3 {[%clk 0:00:20.7]} 32... g5 {[%clk
0:00:17.4]} 33. h3 {[%clk 0:00:20.6]} 33... h5 {[%clk 0:00:13.8]} 34. Rc4 {[%clk
0:00:20.6]} 34... Rxc4 {[%clk 0:00:13]} 35. Rxc4 {[%clk 0:00:21.5]} 35... Kg7
{[%clk 0:00:12.8]} 36. Rc3 {[%clk 0:00:19.1]} 36... Re8 {[%clk 0:00:10.3]} 37.
Nb3 {[%clk 0:00:18.3]} 37... Ra8 {[%clk 0:00:06.7]} 38. Kg1 {[%clk 0:00:17.1]}
38... Ra3 {[%clk 0:00:06.8]} 39. Bf1 {[%clk 0:00:14.8]} 39... Be6 {[%clk
0:00:07.2]} 40. Rc5 {[%clk 0:00:07.9]} 40... Rxb3 {[%clk 0:00:04.9]} 41. Rxg5+
{[%clk 0:00:08.5]} 41... Kh6 {[%clk 0:00:05.3]} 42. Re5 {[%clk 0:00:09.1]} 42...
Rb1 {[%clk 0:00:04.7]} 43. Kg2 {[%clk 0:00:09.1]} 43... Kg6 {[%clk 0:00:04.1]}
44. Be2 {[%clk 0:00:08.5]} 44... Rb4 {[%clk 0:00:04]} 45. g4 {[%clk 0:00:08.2]}
45... hxg4 {[%clk 0:00:03.9]} 46. h4 {[%clk 0:00:08.3]} 46... Nd7 {[%clk
0:00:02.5]} 47. Rg5+ {[%clk 0:00:08.5]} 47... Kh6 {[%clk 0:00:02.5]} 48. Ra5
{[%clk 0:00:09.4]} 48... f6 {[%clk 0:00:02]} 49. Kg3 {[%clk 0:00:08.5]} 49...
Rb6 {[%clk 0:00:01.2]} 50. Bxg4 {[%clk 0:00:08.5]} 50... Bxg4 {[%clk 0:00:01]}
51. Kxg4 {[%clk 0:00:09.4]} 51... Rd6 {[%clk 0:00:01.3]} 52. Rh5+ {[%clk
0:00:09.7]} 52... Kg6 {[%clk 0:00:01.3]} 53. Ra5 {[%clk 0:00:10.6]} 53... Kf7
{[%clk 0:00:01.8]} 54. h5 {[%clk 0:00:11]} 54... Re6 {[%clk 0:00:02.3]} 55. Kf5
{[%clk 0:00:11.2]} 55... Re5+ {[%clk 0:00:02.7]} 56. Rxe5 {[%clk 0:00:11.4]}
56... Nxe5 {[%clk 0:00:03.6]} 57. Kxe4 {[%clk 0:00:12.1]} 57... Ng4 {[%clk
0:00:03.7]} 58. f4 {[%clk 0:00:11.6]} 58... Nh6 {[%clk 0:00:04.6]} 59. Kd5
{[%clk 0:00:11.4]} 59... Ke7 {[%clk 0:00:05]} 60. e4 {[%clk 0:00:11.8]} 60...
Kf7 {[%clk 0:00:05.5]} 61. f5 {[%clk 0:00:12.2]} 61... Ng4 {[%clk 0:00:05.8]}
62. Kd6 {[%clk 0:00:11.4]} 62... Ne5 {[%clk 0:00:06.3]} 63. Kd5 {[%clk
0:00:11.9]} 63... Kg7 {[%clk 0:00:06.7]} 64. Ke6 {[%clk 0:00:12.3]} 64... Ng4
{[%clk 0:00:07.2]} 65. h6+ {[%clk 0:00:10.5]} 65... Kxh6 {[%clk 0:00:07.2]} 66.
e5 {[%clk 0:00:10.8]} 66... fxe5 {[%clk 0:00:07.5]} 67. f6 {[%clk 0:00:11.4]}
67... Nxf6 {[%clk 0:00:05.3]} 68. Kxe5 {[%clk 0:00:11.8]} 1/2-1/2

[Event "Early-Titled-Tuesday-Blitz-July-09-2024"]
[Site "Chess.com"]
[Date "2024.07.09"]
[Round "4"]
[White "Vaathi_Coming"]
[Black "juancruzarias"]
[Result "1-0"]
[WhiteElo "2918"]
[BlackElo "2699"]
[TimeControl "180+1"]
[EndTime "8:40:55 PDT"]
[Termination "Vaathi_Coming won on time"]

1. c4 {[%clk 0:02:57.1]} 1... e6 {[%clk 0:03:00]} 2. Nc3 {[%clk 0:02:56.4]} 2...
d5 {[%clk 0:03:00.3]} 3. e3 {[%clk 0:02:56.7]} 3... Nf6 {[%clk 0:03:00.2]} 4.
Nf3 {[%clk 0:02:55.7]} 4... a6 {[%clk 0:02:59.9]} 5. b3 {[%clk 0:02:55]} 5...
Nbd7 {[%clk 0:02:59.6]} 6. Bb2 {[%clk 0:02:55.4]} 6... Bd6 {[%clk 0:02:59.6]} 7.
Qc2 {[%clk 0:02:53.4]} 7... dxc4 {[%clk 0:02:47.5]} 8. Bxc4 {[%clk 0:02:52.4]}
8... b5 {[%clk 0:02:39.5]} 9. Be2 {[%clk 0:02:48.1]} 9... Bb7 {[%clk 0:02:37.7]}
10. d3 {[%clk 0:02:41.8]} 10... O-O {[%clk 0:02:34.6]} 11. O-O {[%clk
0:02:37.3]} 11... c5 {[%clk 0:02:29.4]} 12. a4 {[%clk 0:02:33.1]} 12... Qb6
{[%clk 0:02:19.5]} 13. Rfd1 {[%clk 0:02:10.9]} 13... Rfc8 {[%clk 0:02:18.8]} 14.
Ne4 {[%clk 0:02:05]} 14... Be7 {[%clk 0:02:15.4]} 15. Ng3 {[%clk 0:01:59.8]}
15... Nd5 {[%clk 0:02:00.4]} 16. h4 {[%clk 0:01:44.3]} 16... Bf6 {[%clk
0:01:59.4]} 17. Ne4 {[%clk 0:01:39.6]} 17... Bxb2 {[%clk 0:01:51]} 18. Qxb2
{[%clk 0:01:40.5]} 18... N7f6 {[%clk 0:01:44.4]} 19. Ne5 {[%clk 0:00:42.2]}
19... bxa4 {[%clk 0:01:02.3]} 20. Nc4 {[%clk 0:00:20.6]} 20... Qc7 {[%clk
0:00:59.5]} 21. Rxa4 {[%clk 0:00:16.5]} 21... Bc6 {[%clk 0:00:58.7]} 22. Raa1
{[%clk 0:00:12]} 22... Bb5 {[%clk 0:00:47.2]} 23. Bf3 {[%clk 0:00:06.1]} 23...
Rab8 {[%clk 0:00:44.9]} 24. Nxf6+ {[%clk 0:00:05.5]} 24... Nxf6 {[%clk
0:00:43.5]} 25. Rdc1 {[%clk 0:00:05.9]} 25... Rd8 {[%clk 0:00:41.6]} 26. Ne5
{[%clk 0:00:05.9]} 26... Bxd3 {[%clk 0:00:37.1]} 27. Nxd3 {[%clk 0:00:05.6]}
27... Rxd3 {[%clk 0:00:38]} 28. Rxa6 {[%clk 0:00:05.6]} 28... Rdxb3 {[%clk
0:00:35.8]} 29. Qc2 {[%clk 0:00:05.7]} 29... R3b4 {[%clk 0:00:23.6]} 30. g3
{[%clk 0:00:05.1]} 30... c4 {[%clk 0:00:22.5]} 31. Rc6 {[%clk 0:00:04.8]} 31...
Qe5 {[%clk 0:00:19.4]} 32. Rxc4 {[%clk 0:00:04.5]} 32... Rxc4 {[%clk 0:00:19.4]}
33. Qxc4 {[%clk 0:00:05.4]} 33... g6 {[%clk 0:00:19.7]} 34. Rd1 {[%clk
0:00:04.9]} 34... h5 {[%clk 0:00:19.4]} 35. Kg2 {[%clk 0:00:05.3]} 35... Qf5
{[%clk 0:00:19.2]} 36. Rd4 {[%clk 0:00:05.3]} 36... Qe5 {[%clk 0:00:18.7]} 37.
Rd2 {[%clk 0:00:05.4]} 37... Kg7 {[%clk 0:00:18.7]} 38. Qa4 {[%clk 0:00:05.1]}
38... Qc7 {[%clk 0:00:11.3]} 39. Rc2 {[%clk 0:00:04.9]} 39... Qe7 {[%clk
0:00:11.3]} 40. Qd4 {[%clk 0:00:04.9]} 40... Rd8 {[%clk 0:00:11.5]} 41. Qb2
{[%clk 0:00:04.5]} 41... e5 {[%clk 0:00:11.8]} 42. Rc4 {[%clk 0:00:04.1]} 42...
Qe6 {[%clk 0:00:11.6]} 43. Rb4 {[%clk 0:00:03.9]} 43... Rd7 {[%clk 0:00:11.6]}
44. Rb6 {[%clk 0:00:04.1]} 44... Qe7 {[%clk 0:00:11.7]} 45. Rb5 {[%clk
0:00:03.9]} 45... e4 {[%clk 0:00:09.7]} 46. Be2 {[%clk 0:00:04.4]} 46... Rd6
{[%clk 0:00:09.3]} 47. Rb7 {[%clk 0:00:04.4]} 47... Rd7 {[%clk 0:00:07.5]} 48.
Rb6 {[%clk 0:00:04.2]} 48... Rd6 {[%clk 0:00:07.8]} 49. Rb4 {[%clk 0:00:04.7]}
49... Qe6 {[%clk 0:00:07]} 50. Bc4 {[%clk 0:00:04.8]} 50... Qf5 {[%clk
0:00:07.5]} 51. Rb7 {[%clk 0:00:04.4]} 51... Qf3+ {[%clk 0:00:05.9]} 52. Kh2
{[%clk 0:00:04.8]} 1-0